bitfinex-derivatives/quotes_BNBF0:USTF0_20251225
["timestamp","ask_amount","ask_price","bid_price","bid_amount"]
[1766701643310,1.119,841.18,840.54,0.8893666]
[1766701652823,1.119,841.18,840.55,0.8893666]
[1766701662031,1.119,841.18,840.4,1.18807796]
[1766701662032,0.88684748,841.14,840.4,0.8893666]
[1766701664628,0.88684748,841.16,840.42,0.8893666]
[1766701664928,1.119,841.18,840.48,0.8893666]
[1766701665127,1.119,841.18,840.49,0.8893666]
[1766701665328,1.119,841.18,840.48,9.8626776]
[1766701667331,1.119,841.18,840.48,8.973311]
[1766701668829,1.119,841.18,840.47,0.8893666]
[1766701670230,1.119,841.18,840.16,1.78211694]
[1766701670231,1.119,841.18,840.46,0.8893666]
[1766701675335,1.119,841.18,840.45,0.8893666]
[1766701680141,1.119,841.18,840.3,1.18807796]
[1766701680335,1.119,841.18,840.45,0.89106043]
[1766701680538,1.119,841.18,840.45,9.98805442]
[1766701683643,1.119,841.18,840.45,0.89106043]
[1766701685344,0.88593496,841.27,840.45,0.89106043]
[1766701687844,0.992,841.26,840.45,0.89106043]
[1766701693951,1.87793496,841.26,840.44,0.89106043]
[1766701694255,0.88593496,841.24,840.42,0.89106043]
[1766701694454,0.88593496,841.23,840.42,0.89106043]
[1766701697958,0.88593496,841.24,840.44,0.89106043]
[1766701702262,0.88593496,841.24,840.45,0.89106043]
[1766701702463,0.88593496,841.24,840.45,9.66340789]
[1766701703262,0.88593496,841.23,840.45,9.66340789]
[1766701704168,0.992,841.26,840.48,0.89106043]
[1766701704366,0.992,841.26,840.49,0.89106043]
[1766701704864,0.992,841.26,840.51,0.89106043]
[1766701705063,0.992,841.26,840.59,0.89106043]
[1766701705268,0.992,841.26,840.58,0.89106043]
[1766701708271,0.992,841.26,840.57,0.89106043]
[1766701708572,0.992,841.26,840.58,0.89106043]
[1766701709566,0.992,841.26,840.59,0.89106043]
[1766701709770,0.992,841.26,840.66,0.89106043]
[1766701710274,0.992,841.26,840.65,0.89106043]
[1766701711575,0.992,841.26,840.64,0.89106043]
[1766701712274,0.992,841.26,840.63,0.89106043]
[1766701714277,0.992,841.26,840.62,0.89106043]
[1766701716282,0.992,841.26,840.61,0.89106043]
[1766701719285,0.992,841.26,840.6,0.89106043]
[1766701721488,0.992,841.26,840.61,0.89106043]
[1766701722088,0.992,841.26,840.63,0.89106043]
[1766701722691,0.992,841.26,840.63,9.80143382]
[1766701724293,0.992,841.26,840.63,8.91037339]
[1766701726194,0.992,841.26,840.62,0.89106043]
[1766701739306,0.992,841.26,840.63,0.89106043]
[1766701739712,0.992,841.26,840.63,9.84167663]
[1766701742109,0.20687749,841.49,840.64,0.89106043]
[1766701743519,0.20687749,841.49,840.65,0.89106043]
[1766701745222,0.20687749,841.49,840.66,0.89106043]
[1766701746019,1.267,841.48,840.66,0.89106043]
[1766701746520,1.267,841.48,840.67,0.89106043]
[1766701747124,1.267,841.48,840.67,9.65706822]
[1766701747325,1.267,841.48,840.68,0.89106043]
[1766701748225,1.267,841.48,840.69,0.89106043]
[1766701749323,1.267,841.48,840.71,0.89106043]
[1766701750322,2.15293496,841.48,840.71,0.89106043]
[1766701752226,0.88593496,841.47,840.71,0.89106043]
[1766701753228,0.88593496,841.46,840.72,0.89106043]
[1766701754228,0.88593496,841.45,840.73,0.89106043]
[1766701754824,0.88593496,841.45,840.73,9.9856922]
[1766701759226,0.88593496,841.45,840.73,0.89106043]
[1766701762333,0.88593496,841.44,840.73,0.89106043]
[1766701765430,0.88593496,841.43,840.72,0.89106043]
[1766701775343,0.88593496,841.44,840.72,0.89106043]
[1766701777840,0.88593496,841.41,840.69,0.89106043]
[1766701778044,0.88593496,841.37,840.65,0.89106043]
[1766701778244,0.88593496,841.38,840.64,0.89106043]
[1766701779244,0.88593496,841.39,840.64,0.89106043]
[1766701781241,0.88593496,841.39,840.63,0.89106043]
[1766701783246,0.88593496,841.39,840.62,0.89106043]
[1766701784151,0.88593496,841.4,840.62,0.89106043]
[1766701791152,0.88593496,841.4,840.61,0.89106043]
[1766701792156,0.88593496,841.41,840.61,0.89106043]
[1766701796653,0.88593496,841.41,840.6,0.89106043]
[1766701796958,0.88593496,841.39,840.6,0.89106043]
[1766701797160,0.88593496,841.38,840.58,0.89106043]
[1766701801960,0.88593496,841.36,840.56,0.89106043]
[1766701802864,0.893,841.35,840.56,0.89106043]
[1766701803060,0.893,841.35,840.55,0.89106043]
[1766701803259,0.893,841.35,840.56,0.89106043]
[1766701804164,0.893,841.35,840.55,0.89106043]
[1766701812272,0.893,841.35,840.56,0.89106043]
[1766701819278,1.77893496,841.35,840.57,0.89106043]
[1766701819778,1.77893496,841.35,840.57,9.97612082]
[1766701822182,0.88593496,841.34,840.58,0.89106043]
[1766701835187,0.88593496,841.33,840.58,0.89106043]
[1766701835387,0.88593496,841.34,840.58,0.89106043]
[1766701836191,0.893,841.35,840.59,0.89106043]
[1766701836192,0.88593496,841.33,840.59,0.89106043]
[1766701837092,0.88593496,841.33,840.59,9.76955461]
[1766701840293,0.88593496,841.33,840.59,0.89106043]
[1766701841089,0.88593496,841.32,840.6,0.89106043]
[1766701844194,0.88593496,841.32,840.61,0.89106043]
[1766701851698,1.241,841.31,840.61,0.89106043]
[1766701851999,1.241,841.31,840.62,0.89106043]
[1766701865106,1.241,841.31,840.61,0.89106043]
[1766701865510,0.88593496,841.34,840.61,0.89106043]
[1766701868409,0.971,841.33,840.61,0.89106043]
[1766701872410,0.971,841.33,840.62,0.89106043]
[1766701873410,0.971,841.33,840.62,9.77220489]
[1766701878516,0.971,841.33,840.62,0.89106043]
[1766701887120,0.971,841.33,840.64,0.89106043]
[1766701888823,0.971,841.33,840.66,0.89106043]
[1766701889824,0.971,841.33,840.66,9.88960445]
[1766701890123,0.971,841.33,840.68,0.89106043]
[1766701890326,0.971,841.33,840.7,0.89106043]
[1766701890625,0.971,841.33,840.8,0.89106043]
[1766701890829,0.971,841.33,840.79,0.89106043]
[1766701891128,0.971,841.33,840.77,0.89106043]
[1766701892128,0.971,841.33,840.76,0.89106043]
[1766701893130,0.971,841.33,840.75,0.89106043]
[1766701894229,0.971,841.33,840.74,0.89106043]
[1766701895129,0.971,841.33,840.73,0.89106043]
[1766701896532,0.20687749,841.49,840.73,0.89106043]
[1766701897331,0.20687749,841.49,840.72,0.89106043]
[1766701898734,0.88593496,841.63,840.75,0.89106043]
[1766701898936,0.20682708,841.6,840.78,0.89106043]
[1766701899137,0.20682708,841.6,840.77,0.89106043]
[1766701899337,0.20682708,841.6,840.83,0.89106043]
[1766701900231,0.20682708,841.6,840.75,8.84434058]
[1766701900232,1.055,841.59,840.82,0.89106043]
[1766701900432,1.055,841.59,840.83,0.89106043]
[1766701901237,1.055,841.59,840.82,0.89106043]
[1766701902238,1.055,841.59,840.81,0.89106043]
[1766701903235,1.055,841.59,839.9,2.97019491]
[1766701903236,1.055,841.59,840.8,0.89106043]
[1766701903440,1.055,841.59,840.84,0.89106043]
[1766701903640,1.055,841.59,840.89,0.89106043]
[1766701904142,1.055,841.59,840.91,0.89106043]
[1766701904438,1.055,841.59,840.94,0.89106043]
[1766701904837,1.055,841.59,840.95,0.89106043]
[1766701905138,1.055,841.59,840.94,0.89106043]
[1766701906136,1.055,841.59,840.92,0.89106043]
[1766701906638,1.055,841.59,840.95,0.89106043]
[1766701907340,1.055,841.59,840.94,0.89106043]
[1766701908041,1.055,841.59,840.93,0.89106043]
[1766701909242,1.055,841.59,840.92,0.89106043]
[1766701910041,1.055,841.59,840.93,0.89106043]
[1766701910238,1.055,841.59,840.92,0.89106043]
[1766701911137,1.055,841.59,840.91,0.89106043]
[1766701912142,1.055,841.59,840.9,0.89106043]
[1766701914039,1.055,841.59,840.94,0.89106043]
[1766701914244,1.055,841.59,840.95,0.89106043]
[1766701915843,1.055,841.59,840.95,9.88706035]
[1766701916138,1.055,841.59,840.95,8.99599992]
[1766701919340,1.055,841.59,840.93,0.89106043]
[1766701921843,1.055,841.59,840.91,0.89106043]
[1766701922039,1.055,841.59,840.89,0.89106043]
[1766701923845,1.055,841.59,840.87,0.89106043]
[1766701924044,1.055,841.59,840.82,0.89106043]
[1766701926443,1.055,841.59,840.83,0.89106043]
[1766701927342,1.055,841.59,840.83,9.6602083]
[1766701928139,1.055,841.59,840.84,0.89106043]
[1766701928641,1.055,841.59,840.83,8.76914787]
[1766701931248,1.055,841.59,840.8,0.89106043]
[1766701932347,1.055,841.59,840.81,0.89106043]
[1766701932549,1.055,841.59,840.82,0.89106043]
[1766701933346,1.055,841.59,840.83,0.89106043]
[1766701934348,1.055,841.59,840.84,0.89106043]
[1766701935148,1.055,841.59,840.85,0.89106043]
[1766701936052,1.055,841.59,840.86,0.89106043]
[1766701937453,1.055,841.59,840.87,0.89106043]
[1766701938454,1.055,841.59,840.87,9.7108778]
[1766701939152,1.055,841.59,840.88,0.89106043]
[1766701940157,1.055,841.59,840.89,0.89106043]
[1766701941358,1.055,841.59,840.9,0.89106043]
[1766701942358,1.055,841.59,840.91,0.89106043]
[1766701943057,1.055,841.59,840.92,0.89106043]
[1766701944162,0.88593496,841.83,840.92,0.89106043]
[1766701945162,0.88593496,841.83,840.93,0.89106043]
[1766701946364,0.88593496,841.82,840.93,0.89106043]
[1766701946964,0.88593496,841.82,840.92,0.89106043]
[1766701947265,2.19693496,841.81,840.93,0.89106043]
[1766701951664,0.88593496,841.75,840.86,0.89106043]
[1766701953469,0.88593496,841.75,840.85,0.89106043]
[1766701955372,0.88593496,841.76,840.85,0.89106043]
[1766701958777,0.88593496,841.75,840.84,0.89106043]
[1766701960077,0.88593496,841.74,840.84,0.89106043]
[1766701962175,0.88593496,841.74,840.85,0.89106043]
[1766701962380,0.88593496,841.73,840.85,8.86040465]
[1766701962879,0.88593496,841.68,840.85,8.86040465]
[1766701963280,0.88593496,841.67,840.85,8.86040465]
[1766701963479,0.88593496,841.68,840.85,8.86040465]
[1766701964182,0.88593496,841.67,840.85,8.86040465]
[1766701965888,0.88593496,841.67,840.78,0.89106043]
[1766701966387,0.88593496,841.66,840.78,0.89106043]
[1766701967489,0.88593496,841.66,840.79,0.89106043]
[1766701968388,0.88593496,841.65,840.79,0.89106043]
[1766701969389,0.88593496,841.66,840.79,0.89106043]
[1766701969691,0.88593496,841.63,840.77,0.89106043]
[1766701970388,0.88593496,841.63,840.76,0.89106043]
[1766701971292,0.88593496,841.64,840.76,0.89106043]
[1766701986104,0.88593496,841.63,840.76,0.89106043]
[1766701988305,1.204,841.62,840.77,0.89106043]
[1766701988507,1.204,841.62,840.77,9.91036478]
[1766701990406,2.08993496,841.62,840.77,9.91036478]
[1766701990810,0.88593496,841.61,840.77,9.01930435]
[1766701992310,0.88593496,841.61,840.76,0.89106043]
[1766701992510,0.88593496,841.6,840.76,0.89106043]
[1766701994415,0.88593496,841.6,840.77,0.89106043]
[1766701995415,0.88593496,841.59,840.77,0.89106043]
[1766701996415,0.88593496,841.58,840.78,0.89106043]
[1766702000318,0.88593496,841.58,840.79,0.89106043]
[1766702001415,0.88593496,841.57,840.79,0.89106043]
[1766702004420,0.88593496,841.56,840.8,0.89106043]
[1766702005222,0.88593496,841.56,840.8,9.82621831]
[1766702006318,0.88593496,841.56,840.81,0.89106043]
[1766702007420,0.88593496,841.55,840.81,0.89106043]
[1766702009424,0.88593496,841.55,840.82,0.89106043]
[1766702010825,0.88593496,841.54,840.81,0.89106043]
[1766702014322,0.88593496,841.53,840.81,0.89106043]
[1766702016422,0.88593496,841.54,840.81,0.89106043]
[1766702017225,0.88593496,841.55,840.83,0.89106043]
[1766702018324,0.88593496,841.55,840.83,9.64858757]
[1766702025434,0.88593496,841.55,840.83,0.89106043]
[1766702033443,0.88593496,841.55,840.68,1.18807796]
[1766702033444,0.88593496,841.53,840.82,0.89106043]
[1766702034445,0.88593496,841.44,840.72,0.89106043]
[1766702035247,0.88593496,841.45,840.71,0.89106043]
[1766702036347,0.88593496,841.46,840.7,0.89106043]
[1766702037246,0.88593496,841.47,840.7,0.89106043]
[1766702038249,0.88593496,841.47,840.69,0.89106043]
[1766702041247,0.88593496,841.48,840.69,0.89106043]
[1766702042350,0.88593496,841.48,840.68,0.89106043]
[1766702044353,0.88593496,841.49,840.68,0.89106043]
[1766702046351,0.88593496,841.49,840.67,0.89106043]
[1766702048354,0.909,841.48,840.67,0.89106043]
[1766702053255,0.909,841.48,840.66,0.89106043]
[1766702059268,0.909,841.48,840.65,0.89106043]
[1766702062266,0.909,841.48,840.66,0.89106043]
[1766702062967,0.909,841.48,840.66,9.84306616]
[1766702066569,0.909,841.48,840.66,0.89106043]
[1766702066768,0.909,841.48,840.51,1.18807796]
[1766702066971,0.909,841.48,840.66,0.89076517]
[1766702067166,0.909,841.48,840.66,9.72696986]
[1766702068369,1.79533097,841.48,840.66,9.72696986]
[1766702070175,1.79533097,841.48,840.66,0.89076517]
[1766702070477,1.79533097,841.48,840.67,0.89076517]
[1766702072276,0.88633097,841.47,840.67,0.89076517]
[1766702074276,0.88633097,841.47,840.68,0.89076517]
[1766702075178,0.88633097,841.46,840.68,0.89076517]
[1766702076277,0.88633097,841.46,840.69,0.89076517]
[1766702077281,0.88633097,841.45,840.69,0.89076517]
[1766702078281,0.909,841.48,840.7,0.89076517]
[1766702078282,0.88633097,841.44,840.7,0.89076517]
[1766702079279,0.88633097,841.43,840.72,0.89076517]
[1766702082882,0.967,841.42,840.72,0.89076517]
[1766702101092,0.967,841.42,840.18,55.36407062]
[1766702101093,1.85333097,841.42,840.71,0.89076517]
[1766702114310,0.967,841.42,840.71,0.89076517]
[1766702120317,1.85333097,841.42,840.71,0.89076517]
[1766702123315,1.85333097,841.42,840.7,0.89076517]
[1766702135927,0.88633097,841.42,840.7,0.89076517]
[1766702136129,0.88633097,841.41,840.7,0.89076517]
[1766702138728,0.869,841.4,840.7,0.89076517]
[1766702140327,0.869,841.4,840.7,0.89217829]
[1766702140531,0.869,841.4,840.7,9.66811161]
[1766702146038,0.869,841.4,840.7,0.89217829]
[1766702177668,0.8880122,841.41,840.7,0.89217829]
[1766702179473,0.8880122,841.41,840.71,0.89217829]
[1766702180868,0.992,841.4,840.71,0.89217829]
[1766702181071,0.992,841.4,840.71,9.98157871]
[1766702184775,0.992,841.4,840.71,0.89217829]
[1766702202994,0.8880122,841.41,840.71,0.89217829]
[1766702206499,0.996,841.4,840.71,0.89217829]
[1766702257543,0.8880122,841.41,840.71,0.89217829]
[1766702260149,0.89,841.4,840.71,0.89217829]
[1766702280973,0.89,841.4,840.72,0.89217829]
[1766702281172,0.89,841.4,840.73,0.89217829]
[1766702281475,0.89,841.4,840.72,0.89217829]
[1766702283371,0.89,841.4,840.71,0.89217829]
[1766702310299,0.8880122,841.42,840.71,0.89217829]
[1766702313302,1.298,841.41,840.71,0.89217829]
[1766702319103,1.298,841.41,840.56,1.18807796]
[1766702319404,1.298,841.41,840.71,0.89225052]
[1766702327214,1.298,841.41,840.72,0.89225052]
[1766702333016,1.298,841.41,840.77,0.89225052]
[1766702345225,1.298,841.41,840.75,0.89225052]
[1766702352834,1.298,841.41,840.74,0.89225052]
[1766702361243,0.88820344,841.46,840.74,0.89225052]
[1766702365148,1.146,841.45,840.74,0.89225052]
[1766702366746,1.146,841.45,840.73,0.89225052]
[1766702366747,2.03420344,841.45,840.73,0.89225052]
[1766702383362,0.88820344,841.44,840.73,0.89225052]
[1766702400477,0.88820344,841.36,840.65,0.89225052]
[1766702400678,0.88820344,841.31,840.6,0.89225052]
[1766702400876,1.146,841.45,840.65,0.89225052]
[1766702401079,1.146,841.45,840.62,0.89225052]
[1766702401279,1.146,841.45,840.6,0.89225052]
[1766702401878,0.88815765,841.31,840.56,0.89225052]
[1766702402079,0.88815765,841.32,840.54,0.89225052]
[1766702402477,0.88815765,841.34,840.56,0.89225052]
[1766702403380,0.88815765,841.34,840.55,0.89225052]
[1766702404080,0.88815765,841.35,840.54,0.89225052]
[1766702405578,0.88815765,841.37,840.55,0.89225052]
[1766702405777,0.88815765,841.37,840.56,0.89225052]
[1766702405982,0.88815765,841.38,840.56,0.89225052]
[1766702407178,0.88815765,841.39,840.56,0.89225052]
[1766702409079,0.88815765,841.39,840.55,0.89225052]
[1766702412885,0.88815765,841.39,840.54,0.89225052]
[1766702421290,0.942,841.38,840.54,0.89225052]
[1766702425901,0.942,841.38,840.55,0.89225052]
[1766702426498,0.942,841.38,840.57,0.89225052]
[1766702426898,0.942,841.38,840.66,0.89225052]
[1766702442920,0.942,841.38,840.51,1.18807796]
[1766702442921,0.942,841.38,840.65,0.89225052]
[1766702443421,0.20685781,841.5,840.65,0.89225052]
[1766702447320,0.95,841.49,840.65,0.89225052]
[1766702449322,0.95,841.49,840.66,0.89225052]
[1766702459124,0.95,841.49,840.67,0.89225052]
[1766702462326,1.83815765,841.49,840.67,0.89225052]
[1766702464127,1.83815765,841.49,840.68,0.89225052]
[1766702465131,0.88815765,841.48,840.68,0.89225052]
[1766702466330,0.88815765,841.48,840.69,0.89225052]
[1766702468231,0.88815765,841.47,840.7,0.89225052]
[1766702469133,0.88815765,841.46,840.7,0.89225052]
[1766702470033,0.88815765,841.45,840.71,0.89225052]
[1766702471132,0.88815765,841.43,840.73,0.89225052]
[1766702474540,0.88815765,841.36,840.66,0.89225052]
[1766702474936,0.88815765,841.33,840.63,0.89225052]
[1766702475340,0.88815765,841.35,840.61,0.89225052]
[1766702475540,0.88815765,841.34,840.6,0.89225052]
[1766702476140,0.88815765,841.33,840.59,0.89225052]
[1766702476339,0.88815765,841.34,840.58,0.89225052]
[1766702477338,0.88815765,841.35,840.57,0.89225052]
[1766702478437,0.88815765,841.3,840.51,0.89225052]
[1766702479437,0.88815765,841.31,840.5,0.89225052]
[1766702480438,0.88815765,841.32,840.49,0.89225052]
[1766702480642,0.88815765,841.32,840.34,1.18807796]
[1766702480643,0.88815765,841.31,840.48,0.89225052]
[1766702481343,0.88815765,841.32,840.48,0.89225052]
[1766702481543,0.20691377,841.16,840.48,0.89225052]
[1766702482239,0.20691377,841.16,840.45,0.89225052]
[1766702482645,0.20691377,841.16,840.42,0.89225052]
[1766702483744,0.20691377,841.16,840.4,0.89225052]
[1766702483945,0.20691377,841.16,840.3,0.89225052]
[1766702484345,0.20691377,841.16,840.28,0.89225052]
[1766702484745,0.20691377,841.16,840.29,0.89225052]
[1766702485446,0.20691377,841.16,840.28,0.89225052]
[1766702486143,0.20691377,841.16,840.27,0.89225052]
[1766702486446,0.20691377,841.16,840.26,0.89225052]
[1766702487446,0.20691377,841.16,840.25,0.89225052]
[1766702489143,0.20691377,841.16,840.24,0.89225052]
[1766702490348,0.20691377,841.16,840.15,0.89225052]
[1766702491347,0.88815765,841.15,840.1,0.89225052]
[1766702491547,0.88815765,840.97,839.92,0.89225052]
[1766702491748,0.88815765,840.96,839.91,0.89225052]
[1766702492049,0.88815765,840.97,839.91,0.89225052]
[1766702492343,0.88815765,840.84,839.62,0.89225052]
[1766702492648,0.88815765,840.65,839.53,0.89225052]
[1766702493248,0.88815765,840.51,839.39,0.89225052]
[1766702493447,0.88815765,840.59,839.32,0.89225052]
[1766702493648,0.88815765,840.6,839.33,0.89225052]
[1766702493848,0.88815765,840.61,839.34,0.89225052]
[1766702494043,0.88815765,840.84,839.57,0.89225052]
[1766702494248,0.88815765,840.83,839.57,8.9697264]
[1766702494547,0.88815765,840.87,839.57,8.9697264]
[1766702494944,0.88815765,840.78,839.57,8.9697264]
[1766702495147,0.88815765,840.71,839.57,8.9697264]
[1766702495346,0.88815765,840.73,839.57,8.9697264]
[1766702496051,0.88815765,840.7,839.57,8.9697264]
[1766702496252,0.88815765,840.64,839.21,0.89225052]
[1766702496550,0.88815765,840.69,839.16,0.89225052]
[1766702497350,0.88815765,840.75,839.15,0.89225052]
[1766702497551,0.88815765,840.74,839.13,0.89225052]
[1766702498246,0.88815765,840.78,839.11,0.89225052]
[1766702498447,0.88815765,840.61,839.11,0.89225052]
[1766702498648,0.88815765,840.61,838.94,0.89225052]
[1766702498949,0.88815765,840.59,838.91,0.89225052]
[1766702499351,0.88815765,840.64,838.88,0.89225052]
[1766702500153,0.88815765,840.66,838.89,0.89225052]
[1766702500353,0.88815765,840.7,838.86,0.89225052]
[1766702500755,0.88815765,840.69,838.85,0.89225052]
[1766702500953,0.88815765,840.7,838.86,0.89225052]
[1766702501350,0.88815765,840.74,838.84,0.89225052]
[1766702502350,0.88815765,840.77,838.82,0.89225052]
[1766702503156,0.88815765,840.76,838.8,0.89225052]
[1766702503355,0.88815765,840.83,838.83,0.89225052]
[1766702503556,0.88815765,840.88,838.88,0.89225052]
[1766702504252,0.88815765,841.0,838.98,0.89225052]
[1766702504457,0.88815765,841.0,838.98,9.86148522]
[1766702505454,0.88815765,841.01,838.98,9.86148522]
[1766702506158,0.88815765,841.01,838.98,8.9692347]
[1766702506457,0.88815765,841.02,838.98,8.9692347]
[1766702507356,0.88815765,841.03,838.98,8.9692347]
[1766702507759,0.88815765,841.03,838.97,0.89225052]
[1766702508456,0.88815765,841.04,838.96,0.89225052]
[1766702510858,0.842,841.03,838.96,0.89225052]
[1766702511360,0.842,841.03,838.97,0.89225052]
[1766702512361,0.842,841.03,838.97,9.85526505]
[1766702513461,0.842,841.03,838.98,0.89225052]
[1766702513662,0.842,841.03,838.99,0.89225052]
[1766702514658,1.73015765,841.03,838.98,0.89225052]
[1766702515357,1.73015765,841.03,838.99,0.89225052]
[1766702515862,0.842,841.03,839.0,0.89225052]
[1766702516258,0.842,841.03,838.66,55.87922853]
[1766702516259,1.73015765,841.03,839.01,0.89225052]
[1766702517360,0.88815765,841.02,839.03,0.89225052]
[1766702518267,0.88815765,841.0,839.04,0.89225052]
[1766702519266,0.88815765,840.99,839.06,0.89225052]
[1766702519962,0.88815765,840.99,839.06,9.99227377]
[1766702520268,0.88815765,840.98,839.07,0.89225052]
[1766702521363,0.88815765,840.96,839.08,0.89225052]
[1766702522267,0.88815765,840.95,839.1,0.89225052]
[1766702523268,0.88815765,840.93,839.11,0.89225052]
[1766702524369,0.88815765,840.91,839.13,0.89225052]
[1766702525371,0.88815765,840.89,839.15,0.89225052]
[1766702526370,0.88815765,840.86,839.17,0.89225052]
[1766702527269,0.88815765,840.84,839.19,0.89225052]
[1766702527466,0.88815765,840.84,839.19,9.6758049]
[1766702528269,0.88815765,840.91,839.31,0.89225052]
[1766702529276,0.88815765,840.9,839.34,0.89225052]
[1766702530171,0.88815765,840.89,839.35,0.89225052]
[1766702530376,0.88815765,840.87,839.36,0.89225052]
[1766702531277,0.88815765,840.85,839.36,0.89225052]
[1766702531576,0.88815765,840.83,839.38,0.89225052]
[1766702532273,0.88815765,840.79,839.4,0.89225052]
[1766702533180,0.88815765,840.79,839.41,0.89225052]
[1766702533378,0.88815765,840.76,839.44,0.89225052]
[1766702534280,0.88815765,840.71,839.48,0.89225052]
[1766702535280,0.88815765,840.66,839.52,0.89225052]
[1766702536377,0.88815765,840.6,839.58,0.89225052]
[1766702537482,0.88815765,840.56,839.6,0.89225052]
[1766702539379,0.88815765,840.54,839.61,0.89225052]
[1766702539979,0.88815765,840.56,839.62,0.89225052]
[1766702540382,0.88815765,840.55,839.62,0.89225052]
[1766702541281,0.88815765,840.55,839.61,0.89225052]
[1766702542480,0.88815765,840.55,839.6,0.89225052]
[1766702543282,0.88815765,840.54,839.6,0.89225052]
[1766702544382,1.78175641,840.84,839.6,0.89225052]
[1766702544383,0.88815765,840.53,839.6,0.89225052]
[1766702545380,0.88815765,840.52,839.6,0.89225052]
[1766702546285,0.88815765,840.5,839.61,0.89225052]
[1766702547287,0.88815765,840.49,839.62,0.89225052]
[1766702547484,0.88815765,840.49,839.61,0.89225052]
[1766702548386,0.88815765,840.47,839.62,0.89225052]
[1766702549490,0.88815765,840.52,839.66,0.89225052]
[1766702550588,1.051,840.51,839.66,0.89225052]
[1766702551687,1.051,840.51,839.67,0.89225052]
[1766702554194,1.051,840.51,839.66,0.89225052]
[1766702554394,1.051,840.51,839.67,0.89225052]
[1766702555195,1.051,840.51,839.66,0.89225052]
[1766702557396,1.051,840.51,839.67,0.89225052]
[1766702558092,1.051,840.51,839.61,9.068819]
[1766702558093,1.051,840.51,839.68,0.89225052]
[1766702561194,1.051,840.51,839.73,0.89225052]
[1766702563098,1.051,840.51,839.76,0.89225052]
[1766702564199,1.051,840.51,839.75,0.89225052]
[1766702564500,1.051,840.51,839.76,0.89225052]
[1766702565402,1.051,840.51,839.75,0.89225052]
[1766702567302,1.051,840.51,839.76,0.89225052]
[1766702572408,1.051,840.51,839.77,0.89225052]
[1766702573608,1.18783761,840.77,839.77,0.89225052]
[1766702576112,1.18783761,840.85,839.85,0.89225052]
[1766702576409,1.302,840.76,839.85,0.89225052]
[1766702576711,1.302,840.76,839.83,0.89225052]
[1766702579614,1.302,840.76,839.84,0.89225052]
[1766702584413,1.302,840.76,839.83,0.89225052]
[1766702585216,1.302,840.76,839.84,0.89225052]
[1766702585515,1.302,840.76,839.83,0.89225052]
[1766702586316,1.302,840.76,839.84,0.89225052]
[1766702586517,1.302,840.76,839.83,0.89225052]
[1766702587317,1.302,840.76,839.84,0.89225052]
[1766702587511,1.302,840.76,839.83,0.89225052]
[1766702589217,1.302,840.76,839.84,0.89225052]
[1766702594321,1.18783761,840.85,839.84,0.89225052]
[1766702596323,1.18783761,840.84,839.85,0.89225052]
[1766702597125,0.889,840.83,839.85,0.89225052]
[1766702601225,2.07683761,840.83,839.86,0.89225052]
[1766702605328,1.18783761,840.82,839.87,0.89225052]
[1766702607830,1.18783761,840.76,839.8,0.89225052]
[1766702608033,1.18783761,840.74,839.79,0.89225052]
[1766702609536,1.18783761,840.74,839.78,0.89225052]
[1766702610231,1.18783761,840.74,839.79,0.89225052]
[1766702610531,1.18783761,840.74,839.78,0.89225052]
[1766702611232,1.18783761,840.74,839.79,0.89225052]
[1766702611436,1.18783761,840.74,839.78,0.89225052]
[1766702616339,0.851,840.73,839.78,0.89225052]
[1766702627744,2.03883761,840.73,839.76,0.89225052]
[1766702628248,1.18783761,840.68,839.72,0.89225052]
[1766702628446,1.18783761,840.69,839.71,0.89225052]
[1766702630145,1.18783761,840.62,839.64,0.89225052]
[1766702630451,1.18783761,840.63,839.63,0.89225052]
[1766702630848,1.18783761,840.57,839.58,0.89225052]
[1766702631044,1.18783761,840.56,839.57,0.89225052]
[1766702631446,1.18783761,840.58,839.56,0.89225052]
[1766702632345,2.63275641,840.73,839.55,0.89225052]
[1766702632346,1.18783761,840.59,839.55,0.89225052]
[1766702632849,0.851,840.73,839.53,0.89225052]
[1766702632850,1.18783761,840.57,839.53,0.89225052]
[1766702633550,1.18783761,840.58,839.52,0.89225052]
[1766702634347,1.18783761,840.59,839.52,0.89225052]
[1766702635147,1.18783761,840.58,839.51,0.89225052]
[1766702635346,1.18783761,840.58,839.49,0.89225052]
[1766702636346,1.18783761,840.59,839.49,0.89225052]
[1766702637449,1.18783761,840.6,839.48,0.89225052]
[1766702639451,1.18783761,840.6,839.47,0.89225052]
[1766702641652,1.18783761,840.6,839.46,0.89225052]